[Event "MCC Labor Day Schev 2024"]
[Site "New York"]
[Date "2024.08.31"]
[Round "3.3"]
[White "Zhao, Alex"]
[Black "Podavonov, Alisher"]
[Result "1/2-1/2"]
[ECO "C00"]
[WhiteElo "2043"]
[BlackElo "2140"]
[Annotator "RC"]
[PlyCount "67"]
[EventDate "2024.08.28"]
[EventType "schev"]
[EventCountry "USA"]
[SourceTitle "playchess.com"]
[Source "ChessBase"]
[SourceQuality "1"]
[TimeControl "5400+30"]

1. Nf3 {[%emt 0:02:40]} d5 {[%emt 0:00:12]} 2. g3 {[%emt 0:00:07]} Nf6 {[%emt 0:00:07]} 3. Bg2 {[%emt 0:00:09]} e6 {[%emt 0:03:01]} 4. O-O {[%emt 0:00:13]} Be7 {[%emt 0:00:02]} 5. d3 {[%emt 0:00:08]} c5 {[%emt 0:00:38]} 6. Nbd2 {[%emt 0:00:17]} Nc6 {[%emt 0:00:23]} 7. e4 {[%emt 0:00:10]} b6 {[%emt 0:04:30]} 8. Re1 {[%emt 0:01:46]} a5 {[%emt 0:01:52]} 9. a4 {[%emt 1:29:30]} Ba6 {[%emt 0:01:46]} 10. exd5 {[%emt 0:00:00]} exd5 {[%emt 0:00:55]} 11. Nf1 {[%emt 0:00:00]} O-O {[%emt 0:01:31]} 12. c3 {[%emt 0:00:00]} d4 {[%emt 0:18:27]} 13. Ne5 {[%emt 0:00:00]} Nxe5 {[%emt 0:00:13]} 14. Rxe5 {[%emt 0:00:00]} Rc8 {[%emt 0:07:34]} 15. c4 {[%emt 0:00:00]} Bd6 {[%emt 0:05:45]} 16. Re1 {[%emt 0:00:00]} Qc7 {[%emt 0:10:43]} 17. Nd2 {[%emt 0:00:00]} Rfe8 {[%emt 0:02:28]} 18. Ne4 {[%emt 0:00:00]} Nxe4 {[%emt 0:00:14]} 19. Bxe4 {[%emt 0:00:00]} Bb7 {[%emt 0:00:41]} 20. Qf3 {[%emt 0:00:00]} Bxe4 {[%emt 0:00:20]} 21. Rxe4 {[%emt 0:00:00]} Qd7 {[%emt 0:02:37]} 22. Bd2 {[%emt 0:00:00]} Rxe4 {[%emt 0:01:41]} 23. Qxe4 {[%emt 0:00:00]} Re8 {[%emt 0:00:08]} 24. Qf3 {[%emt 0:00:00]} g6 {[%emt 0:09:29]} 25. b3 {[%emt 0:00:00]} h5 {[%emt 0:00:13]} 26. h4 {[%emt 0:00:00]} Bf8 {[%emt 0:00:26]} 27. Re1 {[%emt 0:00:00]} Rxe1+ {[%emt 0:00:09]} 28. Bxe1 {[%emt 0:00:00]} Bh6 {[%emt 0:00:19]} 29. Qe4 {[%emt 0:00:00]} Kh7 {[%emt 0:08:11]} 30. Kf1 {[%emt 0:02:38]} f5 {[%emt 0:07:10]} 31. Qe5 {[%emt 0:03:29]} f4 {[%emt 0:02:00]} 32. Bd2 {[%emt 0:02:29]} fxg3 {[%emt 0:05:42]} 33. Bxh6 {[%emt 0:00:14]} Kxh6 {[%emt 0:02:36]} 34. Qf4+ {[%emt 0:00:56]} 1/2-1/2

[Event "MCC Labor Day Schev 2024"]
[Site "New York"]
[Date "2024.08.31"]
[Round "3.4"]
[White "Hoffman, Luc"]
[Black "Colas, Joshua"]
[Result "1/2-1/2"]
[ECO "E04"]
[WhiteElo "2067"]
[BlackElo "2224"]
[Annotator "RC"]
[PlyCount "48"]
[EventDate "2024.08.28"]
[EventType "schev"]
[EventCountry "USA"]
[SourceTitle "playchess.com"]
[Source "ChessBase"]
[SourceQuality "1"]
[TimeControl "5400+30"]

1. d4 {[%emt 0:00:02]} d5 {[%emt 0:14:06]} 2. c4 {[%emt 0:00:25]} e6 {[%emt 0:00:26]} 3. Nf3 {[%emt 0:00:26]} Nf6 {[%emt 0:00:13]} 4. g3 {[%emt 0:02:01]} dxc4 {[%emt 0:02:02]} 5. Bg2 {[%emt 0:00:30]} Nc6 {[%emt 0:01:32]} 6. O-O {[%emt 0:01:03]} Rb8 {[%emt 0:00:25]} 7. b3 {[%emt 0:08:03]} cxb3 {[%emt 0:00:42]} 8. axb3 {[%emt 0:00:38]} a6 {[%emt 0:02:23]} 9. Bb2 {[%emt 0:02:12]} Bb4 {[%emt 0:01:32]} 10. e3 {[%emt 0:02:11]} O-O {[%emt 0:00:22]} 11. Qe2 {[%emt 0:00:13]} b6 {[%emt 0:03:15]} 12. Rd1 {[%emt 0:09:08]} Bb7 {[%emt 0:00:53]} 13. Ne5 {[%emt 0:01:04]} Na5 {[%emt 0:04:08]} 14. Bxb7 {[%emt 0:04:27]} Rxb7 {[%emt 0:00:06]} 15. Ba3 {[%emt 0:04:38]} Bxa3 {[%emt 0:12:01]} 16. Rxa3 {[%emt 0:00:53]} Qd6 {[%emt 0:02:39]} 17. Qxa6 {[%emt 0:01:19]} Rbb8 {[%emt 0:00:21]} 18. Nc4 {[%emt 0:06:20]} Nxc4 {[%emt 0:00:25]} 19. Qxc4 {[%emt 0:00:47]} h5 {[%emt 0:00:42]} 20. Ra7 {[%emt 0:01:29]} Rfc8 {[%emt 0:00:42]} 21. Nc3 {[%emt 0:01:38]} b5 {[%emt 0:00:58]} 22. Nxb5 {[%emt 0:02:31]} Qb6 {[%emt 0:00:13]} 23. Rxc7 {[%emt 0:00:12]} Rxc7 {[%emt 0:01:13]} 24. Nxc7 {[%emt 0:00:09]} Qxb3 {[%emt 0:00:51]} 1/2-1/2

[Event "MCC Labor Day Schev 2024"]
[Site "New York"]
[Date "2024.08.31"]
[Round "3.5"]
[White "Nasta, Kiren Vivek"]
[Black "Patel, Maahir M"]
[Result "1/2-1/2"]
[ECO "C79"]
[WhiteElo "2148"]
[BlackElo "2005"]
[Annotator "RC"]
[PlyCount "66"]
[EventDate "2024.08.28"]
[EventType "schev"]
[EventCountry "USA"]
[SourceTitle "playchess.com"]
[Source "ChessBase"]
[SourceQuality "1"]
[TimeControl "5400+30"]

1. e4 {[%emt 0:00:06]} e5 {[%emt 0:00:10]} 2. Nf3 {[%emt 0:00:04]} Nc6 {[%emt 0:00:07]} 3. Bb5 {[%emt 0:00:03]} a6 {[%emt 0:00:11]} 4. Ba4 {[%emt 0:00:06]} Nf6 {[%emt 0:00:04]} 5. O-O {[%emt 0:00:04]} d6 {[%emt 0:00:07]} 6. Bxc6+ {[%emt 0:02:32]} bxc6 {[%emt 0:02:05]} 7. Re1 {[%emt 0:00:05]} c5 {[%emt 0:01:23]} 8. c3 {[%emt 0:00:12]} Bg4 {[%emt 0:02:05]} 9. d4 {[%emt 0:05:57]} Nd7 {[%emt 0:03:04]} 10. Be3 {[%emt 0:05:49]} cxd4 {[%emt 0:02:10]} 11. cxd4 {[%emt 0:00:09]} Be7 {[%emt 0:00:20]} 12. Nc3 {[%emt 0:04:17]} O-O {[%emt 0:00:26]} 13. h3 {[%emt 0:00:28]} Bh5 {[%emt 0:00:33]} 14. g4 {[%emt 0:08:01]} Bg6 {[%emt 0:00:13]} 15. dxe5 {[%emt 0:00:17]} dxe5 {[%emt 0:07:25]} 16. Qa4 {[%emt 0:02:16]} h6 {[%emt 0:05:27]} 17. Rad1 {[%emt 0:15:07]} Bd6 {[%emt 0:00:56]} 18. Kg2 {[%emt 0:04:24]} Re8 {[%emt 0:07:08]} 19. a3 {[%emt 0:06:06]} Qc8 {[%emt 0:07:47]} 20. Nh4 {[%emt 0:05:35]} Bh7 {[%emt 0:02:15]} 21. Nf5 {[%emt 0:01:40]} Bxf5 {[%emt 0:00:29]} 22. gxf5 {[%emt 0:05:53]} Qd8 {[%emt 0:05:22]} 23. Nd5 {[%emt 0:00:39]} Nf6 {[%emt 0:03:51]} 24. Qc4 {[%emt 0:03:19]} Nxd5 {[%emt 0:01:22]} 25. Rxd5 {[%emt 0:00:40]} Qh4 {[%emt 0:02:22]} 26. Bd2 {[%emt 0:01:30]} Kh8 {[%emt 0:05:22]} 27. Rd3 {[%emt 0:00:29]} Qh5 {[%emt 0:04:43]} 28. Ba5 {[%emt 0:01:18]} Be7 {[%emt 0:04:57]} 29. Qxc7 {[%emt 0:02:15]} Bh4 {[%emt 0:00:37]} 30. Qc1 {[%emt 0:02:07]} Rac8 {[%emt 0:02:07]} 31. Qd1 {[%emt 0:00:16]} Qg5+ {[%emt 0:00:58]} 32. Qg4 {[%emt 0:00:17]} Rc2 {[%emt 0:00:46]} 33. Bb6 {[%emt 0:04:38]} Rxb2 {[%emt 0:01:20]} 1/2-1/2

[Event "MCC Labor Day Schev 2024"]
[Site "New York"]
[Date "2024.08.31"]
[Round "3.6"]
[White "Aravindakshan, Sahana"]
[Black "Sarkar, Justin"]
[Result "1/2-1/2"]
[ECO "E51"]
[WhiteElo "2003"]
[BlackElo "2276"]
[Annotator "RC"]
[PlyCount "107"]
[EventDate "2024.08.28"]
[EventType "schev"]
[EventCountry "USA"]
[SourceTitle "playchess.com"]
[Source "ChessBase"]
[SourceQuality "1"]
[TimeControl "5400+30"]

1. d4 {[%emt 0:00:02]} Nf6 {[%emt 0:00:38]} 2. c4 {[%emt 0:00:04]} e6 {[%emt 0:00:46]} 3. Nc3 {[%emt 0:00:03]} Bb4 {[%emt 0:00:21]} 4. e3 {[%emt 0:00:05]} d5 {[%emt 0:00:38]} 5. a3 {[%emt 0:00:56]} Be7 {[%emt 0:01:02]} 6. Nf3 {[%emt 0:04:07]} O-O {[%emt 0:01:41]} 7. b4 {[%emt 0:00:33]} c6 {[%emt 0:11:39]} 8. Bd3 {[%emt 0:09:53]} dxc4 {[%emt 0:01:09]} 9. Bxc4 {[%emt 0:00:22]} b5 {[%emt 0:00:13]} 10. Bd3 {[%emt 0:03:44]} a5 {[%emt 0:00:13]} 11. bxa5 {[%emt 0:04:26]} Qxa5 {[%emt 0:01:31]} 12. Bb2 {[%emt 0:09:18]} Nd5 {[%emt 0:28:28]} 13. Qc2 {[%emt 0:04:46]} Nxc3 {[%emt 0:05:22]} 14. Bxc3 {[%emt 0:01:09]} b4 {[%emt 0:00:35]} 15. Bd2 {[%emt 0:03:12]} Qa4 {[%emt 0:05:56]} 16. Bxh7+ {[%emt 0:07:38]} Kh8 {[%emt 0:00:01]} 17. Qxa4 {[%emt 0:01:08]} Rxa4 {[%emt 0:00:04]} 18. Bc2 {[%emt 0:00:52]} Rxa3 {[%emt 0:00:07]} 19. O-O {[%emt 0:03:46]} c5 {[%emt 0:03:18]} 20. Rxa3 {[%emt 0:11:57]} bxa3 {[%emt 0:00:02]} 21. dxc5 {[%emt 0:02:42]} Bxc5 {[%emt 0:00:50]} 22. Ra1 {[%emt 0:01:59]} Nc6 {[%emt 0:05:13]} 23. Bc1 {[%emt 0:05:28]} Bb7 {[%emt 0:05:49]} 24. Bxa3 {[%emt 0:01:30]} Bxa3 {[%emt 0:00:48]} 25. Rxa3 {[%emt 0:00:02]} Nb4 {[%emt 0:00:08]} 26. Rb3 {[%emt 0:05:46]} Rc8 {[%emt 0:00:18]} 27. Rxb4 {[%emt 0:02:52]} Rxc2 {[%emt 0:00:06]} 28. h3 {[%emt 0:02:06]} Bxf3 {[%emt 0:00:12]} 29. gxf3 {[%emt 0:01:02]} g6 {[%emt 0:00:06]} 30. Rb7 {[%emt 0:02:31]} Kg7 {[%emt 0:00:11]} 31. Kg2 {[%emt 0:00:27]} Ra2 {[%emt 0:00:14]} 32. Kg3 {[%emt 0:01:01]} Rc2 {[%emt 0:00:11]} 33. f4 {[%emt 0:01:55]} Re2 {[%emt 0:00:26]} 34. Kf3 {[%emt 0:01:13]} Ra2 {[%emt 0:00:14]} 35. Rb3 {[%emt 0:03:25]} Rc2 {[%emt 0:00:39]} 36. e4 {[%emt 0:01:36]} Ra2 {[%emt 0:00:15]} 37. Kg3 {[%emt 0:01:38]} Rc2 {[%emt 0:00:21]} 38. f3 {[%emt 0:01:38]} Rd2 {[%emt 0:00:24]} 39. Rb7 {[%emt 0:01:53]} Rc2 {[%emt 0:00:38]} 40. Rb5 {[%emt 0:00:38]} Rc1 {[%emt 0:00:55]} 41. f5 {[%emt 0:00:56]} exf5 {[%emt 0:00:45]} 42. exf5 {[%emt 0:00:03]} Kf6 {[%emt 0:01:05]} 43. fxg6 {[%emt 0:00:25]} fxg6 {[%emt 0:00:08]} 44. Kg4 {[%emt 0:00:53]} Rg1+ {[%emt 0:00:33]} 45. Kf4 {[%emt 0:00:33]} g5+ {[%emt 0:00:11]} 46. Ke4 {[%emt 0:00:36]} Re1+ {[%emt 0:00:06]} 47. Kd3 {[%emt 0:00:26]} Rh1 {[%emt 0:00:09]} 48. Rb6+ {[%emt 0:00:17]} Kf5 {[%emt 0:00:17]} 49. Ke3 {[%emt 0:00:20]} Rxh3 {[%emt 0:00:08]} 50. Rb5+ {[%emt 0:00:16]} Kf6 {[%emt 0:00:02]} 51. Rb6+ {[%emt 0:00:06]} Kf5 {[%emt 0:00:06]} 52. Rb5+ {[%emt 0:00:08]} Kf6 {[%emt 0:00:05]} 53. Rb6+ {[%emt 0:00:04]} Ke5 {[%emt 0:00:04]} 54. Rb5+ {[%emt 0:00:09]} 1/2-1/2

[Event "MCC Labor Day Schev 2024"]
[Site "New York"]
[Date "2024.08.31"]
[Round "3.7"]
[White "Khodzhamkuliev, Bahadur"]
[Black "Gaw, Chloe"]
[Result "1/2-1/2"]
[ECO "E04"]
[WhiteElo "2187"]
[BlackElo "1981"]
[Annotator "RC"]
[PlyCount "92"]
[EventDate "2024.08.28"]
[EventType "schev"]
[EventCountry "USA"]
[SourceTitle "playchess.com"]
[Source "ChessBase"]
[SourceQuality "1"]
[TimeControl "5400+30"]

1. d4 {[%emt 0:00:03]} d5 {[%emt 0:00:04]} 2. c4 {[%emt 0:00:05]} dxc4 {[%emt 0:00:06]} 3. Nf3 {[%emt 0:00:13]} Nf6 {[%emt 0:00:05]} 4. g3 {[%emt 0:00:17]} e6 {[%emt 0:00:16]} 5. Bg2 {[%emt 0:00:06]} c5 {[%emt 0:01:46]} 6. O-O {[%emt 0:00:17]} Nc6 {[%emt 0:02:25]} 7. dxc5 {[%emt 0:01:26]} Bxc5 {[%emt 0:04:11]} 8. Qxd8+ {[%emt 0:01:05]} Kxd8 {[%emt 0:01:16]} 9. Nbd2 {[%emt 0:00:34]} Bd7 {[%emt 0:03:47]} 10. Nxc4 {[%emt 0:01:44]} Ke7 {[%emt 0:02:56]} 11. Nfe5 {[%emt 0:04:09]} Rac8 {[%emt 0:10:17]} 12. Nd3 {[%emt 0:01:35]} Nd4 {[%emt 0:05:29]} 13. Bd2 {[%emt 0:07:35]} Nxe2+ {[%emt 0:11:02]} 14. Kh1 {[%emt 0:00:05]} b6 {[%emt 0:02:05]} 15. Nxc5 {[%emt 0:00:56]} bxc5 {[%emt 0:00:35]} 16. Rfe1 {[%emt 0:06:28]} Nd4 {[%emt 0:03:27]} 17. Rac1 {[%emt 0:02:47]} Bc6 {[%emt 0:04:31]} 18. Bxc6 {[%emt 0:01:47]} Nxc6 {[%emt 0:02:48]} 19. Be3 {[%emt 0:02:24]} Nd4 {[%emt 0:07:49]} 20. Ne5 {[%emt 0:00:58]} Nd5 {[%emt 0:06:55]} 21. Bxd4 {[%emt 0:00:54]} cxd4 {[%emt 0:00:03]} 22. Nc6+ {[%emt 0:00:15]} Kd6 {[%emt 0:04:33]} 23. Nxd4 {[%emt 0:01:00]} Rxc1 {[%emt 0:00:47]} 24. Rxc1 {[%emt 0:00:12]} Ke5 {[%emt 0:01:13]} 25. Rc4 {[%emt 0:01:45]} Nb6 {[%emt 0:02:47]} 26. Nf3+ {[%emt 0:01:47]} Kd6 {[%emt 0:00:49]} 27. Rg4 {[%emt 0:00:31]} g6 {[%emt 0:01:13]} 28. Rd4+ {[%emt 0:00:16]} Ke7 {[%emt 0:00:49]} 29. Kg2 {[%emt 0:01:42]} Rc8 {[%emt 0:00:32]} 30. h4 {[%emt 0:00:53]} Rc2 {[%emt 0:02:05]} 31. Rb4 {[%emt 0:00:52]} h6 {[%emt 0:07:41]} 32. Rb5 {[%emt 0:03:21]} Nc4 {[%emt 0:02:17]} 33. Nd4 {[%emt 0:09:01]} Rxb2 {[%emt 0:00:17]} 34. Nc6+ {[%emt 0:00:20]} Kd7 {[%emt 0:01:58]} 35. Ne5+ {[%emt 0:01:28]} Ke7 {[%emt 0:00:19]} 36. Nc6+ {[%emt 0:00:20]} Kd7 {[%emt 0:00:02]} 37. Rxb2 {[%emt 0:05:12]} Nxb2 {[%emt 0:00:02]} 38. Nxa7 {[%emt 0:00:07]} Na4 {[%emt 0:00:45]} 39. Nb5 {[%emt 0:00:37]} Kc6 {[%emt 0:00:22]} 40. Nd4+ {[%emt 0:00:30]} Kd5 {[%emt 0:00:41]} 41. Ne2 {[%emt 0:00:37]} Ke4 {[%emt 0:01:47]} 42. g4 {[%emt 0:00:41]} f5 {[%emt 0:01:14]} 43. h5 {[%emt 0:04:40]} gxh5 {[%emt 0:01:31]} 44. Ng3+ {[%emt 0:02:38]} Kf4 {[%emt 0:03:08]} 45. gxf5 {[%emt 0:00:14]} exf5 {[%emt 0:00:08]} 46. Nxh5+ {[%emt 0:00:06]} Ke5 {[%emt 0:04:37]} 1/2-1/2

[Event "MCC Labor Day Schev 2024"]
[Site "New York"]
[Date "2024.08.31"]
[Round "3.8"]
[White "Stern, Kevin B"]
[Black "Zaderman, Vitaly"]
[Result "1-0"]
[ECO "A37"]
[WhiteElo "1920"]
[BlackElo "2093"]
[Annotator "RC"]
[PlyCount "155"]
[EventDate "2024.08.28"]
[EventType "schev"]
[EventCountry "USA"]
[SourceTitle "playchess.com"]
[Source "ChessBase"]
[SourceQuality "1"]
[TimeControl "5400+30"]

1. c4 {[%emt 0:00:06]} c5 {[%emt 0:00:08]} 2. g3 {[%emt 0:00:06]} Nc6 {[%emt 0:00:06]} 3. Bg2 {[%emt 0:00:04]} g6 {[%emt 0:00:06]} 4. Nc3 {[%emt 0:00:05]} Bg7 {[%emt 0:00:07]} 5. a3 {[%emt 0:00:28]} e5 {[%emt 0:00:41]} 6. Nf3 {[%emt 0:00:06]} Nge7 {[%emt 0:00:26]} 7. O-O {[%emt 0:00:20]} O-O {[%emt 0:00:08]} 8. d3 {[%emt 1:33:15]} f5 {[%emt 0:00:38]} 9. Ne1 {[%emt 0:00:00]} a6 {[%emt 0:00:15]} 10. Nc2 {[%emt 0:00:00]} Rb8 {[%emt 0:00:22]} 11. Rb1 {[%emt 0:00:00]} b5 {[%emt 0:00:22]} 12. cxb5 {[%emt 0:00:00]} axb5 {[%emt 0:00:36]} 13. Ne3 {[%emt 0:00:00]} b4 {[%emt 0:10:56]} 14. axb4 {[%emt 0:00:00]} cxb4 {[%emt 0:00:20]} 15. Ncd5 {[%emt 0:00:00]} Kh8 {[%emt 0:01:15]} 16. Nc4 {[%emt 0:00:00]} Nxd5 {[%emt 0:16:20]} 17. Bxd5 {[%emt 0:00:00]} Qc7 {[%emt 0:00:40]} 18. Bg2 {[%emt 0:00:00]} Nd4 {[%emt 0:04:11]} 19. Be3 {[%emt 0:00:00]} d6 {[%emt 0:05:14]} 20. Bxd4 {[%emt 0:00:00]} exd4 {[%emt 0:00:08]} 21. Rc1 {[%emt 0:00:00]} Bb7 {[%emt 0:09:07]} 22. Bxb7 {[%emt 0:00:00]} Rxb7 {[%emt 0:00:09]} 23. Qa4 {[%emt 0:00:00]} Qe7 {[%emt 0:08:42]} 24. Qc6 {[%emt 0:00:00]} Ra7 {[%emt 0:00:17]} 25. Rfe1 {[%emt 0:00:00]} Rd8 {[%emt 0:00:59]} 26. Nb6 {[%emt 0:00:00]} Qb7 {[%emt 0:02:55]} 27. Qxb7 {[%emt 0:00:00]} Rxb7 {[%emt 0:00:08]} 28. Nd5 {[%emt 0:00:00]} Kg8 {[%emt 0:05:14]} 29. Rc4 {[%emt 0:00:00]} Kf7 {[%emt 0:00:33]} 30. Rec1 {[%emt 0:00:00]} Bh6 {[%emt 0:04:51]} 31. Rc7+ {[%emt 0:00:00]} Rd7 {[%emt 0:02:53]} 32. Rxd7+ {[%emt 0:00:00]} Rxd7 {[%emt 0:00:05]} 33. Rc4 {[%emt 0:00:00]} Bd2 {[%emt 0:02:05]} 34. Rxd4 {[%emt 0:00:00]} b3 {[%emt 0:02:03]} 35. Nb6 {[%emt 0:00:00]} Re7 {[%emt 0:09:48]} 36. e3 {[%emt 0:00:00]} Rxe3 {[%emt 0:00:31]} 37. Rxd6 {[%emt 0:00:00]} Re7 {[%emt 0:02:01]} 38. Nc4 {[%emt 0:00:00]} Bb4 {[%emt 0:03:22]} 39. Rb6 {[%emt 0:00:00]} Bc5 {[%emt 0:00:09]} 40. Rxb3 {[%emt 0:00:00]} Re2 {[%emt 0:00:39]} 41. Ne3 {[%emt 0:00:00]} Bxe3 {[%emt 0:00:08]} 42. fxe3 {[%emt 0:00:00]} Rxe3 {[%emt 0:00:09]} 43. Kf2 {[%emt 0:00:00]} Re7 {[%emt 0:00:09]} 44. Rb6 {[%emt 0:00:00]} g5 {[%emt 0:02:32]} 45. b4 {[%emt 0:01:26]} Rd7 {[%emt 0:01:16]} 46. Ke3 {[%emt 0:01:08]} Re7+ {[%emt 0:00:44]} 47. Kf3 {[%emt 0:00:57]} Rd7 {[%emt 0:00:12]} 48. Ke3 {[%emt 0:02:28]} Re7+ {[%emt 0:00:24]} 49. Kd2 {[%emt 0:05:39]} f4 {[%emt 0:00:32]} 50. gxf4 {[%emt 0:00:05]} gxf4 {[%emt 0:00:06]} 51. Rh6 {[%emt 0:00:27]} Kg7 {[%emt 0:00:15]} 52. Rh4 {[%emt 0:00:26]} Rf7 {[%emt 0:04:27]} 53. Ke2 {[%emt 0:00:17]} Kg6 {[%emt 0:03:36]} 54. Kf3 {[%emt 0:00:22]} Rd7 {[%emt 0:00:02]} 55. Rxf4 {[%emt 0:02:05]} Rxd3+ {[%emt 0:00:19]} 56. Kg4 {[%emt 0:01:39]} h5+ {[%emt 0:00:52]} 57. Kh4 {[%emt 0:00:07]} Rb3 {[%emt 0:00:25]} 58. Rc4 {[%emt 0:00:16]} Kf5 {[%emt 0:03:11]} 59. Kxh5 {[%emt 0:00:42]} Rh3+ {[%emt 0:00:13]} 60. Rh4 {[%emt 0:00:03]} Rb3 {[%emt 0:00:07]} 61. Kh6 {[%emt 0:00:31]} Kf6 {[%emt 0:00:11]} 62. Rf4+ {[%emt 0:01:25]} Ke5 {[%emt 0:00:14]} 63. Kg5 {[%emt 0:00:19]} Rh3 {[%emt 0:00:17]} 64. Rh4 {[%emt 0:00:33]} Rb3 {[%emt 0:00:16]} 65. Kg6 {[%emt 0:01:38]} Kd5 {[%emt 0:00:31]} 66. b5 {[%emt 0:00:45]} Kc5 {[%emt 0:00:03]} 67. Rh5+ {[%emt 0:00:06]} Kb6 {[%emt 0:00:03]} 68. h4 {[%emt 0:00:57]} Rb4 {[%emt 0:00:03]} 69. Rh8 {[%emt 0:01:22]} Rg4+ {[%emt 0:00:03]} 70. Kf5 {[%emt 0:00:34]} Rg1 {[%emt 0:00:02]} 71. Rb8+ {[%emt 0:02:57]} Kc7 {[%emt 0:00:02]} 72. Re8 {[%emt 0:00:14]} Rb1 {[%emt 0:00:26]} 73. Re5 {[%emt 0:00:45]} Kd6 {[%emt 0:00:15]} 74. Kf6 {[%emt 0:00:22]} Rh1 {[%emt 0:00:25]} 75. h5 {[%emt 0:00:20]} Rf1+ {[%emt 0:00:24]} 76. Rf5 {[%emt 0:00:04]} Rh1 {[%emt 0:00:13]} 77. Kg6 {[%emt 0:00:18]} Ke6 {[%emt 0:00:17]} 78. Rg5 {[%emt 0:01:35]} 1-0

[Event "MCC Labor Day Schev 2024"]
[Site "New York"]
[Date "2024.08.30"]
[Round "3.8"]
[White "Stern, Kevin B"]
[Black "Zaderman, Vitaly"]
[Result "*"]
[ECO "A37"]
[WhiteElo "1920"]
[BlackElo "2093"]
[Annotator "RC"]
[PlyCount "48"]
[EventDate "2024.08.28"]
[EventType "schev"]
[EventCountry "USA"]
[SourceTitle "playchess.com"]
[Source "ChessBase"]
[SourceQuality "1"]
[TimeControl "5400+30"]

1. c4 {[%emt 0:00:06]} c5 {[%emt 0:00:08]} 2. g3 {[%emt 0:00:06]} Nc6 {[%emt 0:00:06]} 3. Bg2 {[%emt 0:00:04]} g6 {[%emt 0:00:06]} 4. Nc3 {[%emt 0:00:05]} Bg7 {[%emt 0:00:07]} 5. a3 {[%emt 0:00:28]} e5 {[%emt 0:00:41]} 6. Nf3 {[%emt 0:00:06]} Nge7 {[%emt 0:00:26]} 7. O-O {[%emt 0:00:20]} O-O {[%emt 0:00:08]} 8. d3 {[%emt 1:33:15]} f5 {[%emt 0:00:38]} 9. Ne1 {[%emt 0:00:00]} a6 {[%emt 0:00:15]} 10. Nc2 {[%emt 0:00:00]} Rb8 {[%emt 0:00:22]} 11. Rb1 {[%emt 0:00:00]} b5 {[%emt 0:00:22]} 12. cxb5 {[%emt 0:00:00]} axb5 {[%emt 0:00:36]} 13. Ne3 {[%emt 0:00:00]} b4 {[%emt 0:10:56]} 14. axb4 {[%emt 0:00:00]} cxb4 {[%emt 0:00:20]} 15. Ncd5 {[%emt 0:00:00]} Kh8 {[%emt 0:01:15]} 16. Nc4 {[%emt 0:00:00]} Nxd5 {[%emt 0:16:20]} 17. Bxd5 {[%emt 0:00:00]} Qc7 {[%emt 0:00:40]} 18. Bg2 {[%emt 0:00:00]} Nd4 {[%emt 0:04:11]} 19. Be3 {[%emt 0:00:00]} d6 {[%emt 0:05:14]} 20. Bxd4 {[%emt 0:00:00]} exd4 {[%emt 0:00:08]} 21. Rc1 {[%emt 0:00:00]} Bb7 {[%emt 0:09:07]} 22. Be4 {[%emt 0:07:00]} Bc6 23. Bxc6 {[%emt 0:00:00]} Rb7 24. Bxb7 {[%emt 0:00:00]} Qe7 {[%emt 0:09:08]} *

[Event "MCC Labor Day Schev 2024"]
[Site "New York"]
[Date "2024.08.31"]
[Round "3.9"]
[White "Martin Del Campo Cardenas, Roberto Abel"]
[Black "Mottola, Max"]
[Result "1/2-1/2"]
[ECO "B13"]
[WhiteElo "2216"]
[BlackElo "2103"]
[Annotator "RC"]
[PlyCount "106"]
[EventDate "2024.08.28"]
[EventType "schev"]
[EventCountry "USA"]
[SourceTitle "playchess.com"]
[Source "ChessBase"]
[SourceQuality "1"]
[TimeControl "5400+30"]

1. e4 {[%emt 0:00:19]} c6 {[%emt 0:00:26]} 2. d4 {[%emt 0:02:02]} d5 {[%emt 0:00:09]} 3. exd5 {[%emt 0:00:17]} cxd5 {[%emt 0:00:08]} 4. c4 {[%emt 0:00:03]} Nf6 {[%emt 0:00:08]} 5. Nc3 {[%emt 0:00:06]} Nc6 {[%emt 0:00:45]} 6. Nf3 {[%emt 0:00:11]} Bg4 {[%emt 0:01:09]} 7. cxd5 {[%emt 0:00:34]} Nxd5 {[%emt 0:00:09]} 8. Qb3 {[%emt 0:00:06]} Bxf3 {[%emt 0:02:31]} 9. gxf3 {[%emt 0:00:13]} Nb6 {[%emt 0:05:01]} 10. Be3 {[%emt 0:01:36]} e6 {[%emt 0:00:19]} 11. O-O-O {[%emt 0:02:33]} Be7 {[%emt 0:02:17]} 12. d5 {[%emt 0:09:11]} exd5 {[%emt 0:00:10]} 13. Bxb6 {[%emt 0:03:06]} Qxb6 {[%emt 0:01:23]} 14. Qxb6 {[%emt 0:02:21]} axb6 {[%emt 0:00:08]} 15. Nxd5 {[%emt 0:00:03]} Rxa2 {[%emt 0:03:11]} 16. Kb1 {[%emt 0:00:42]} Ra5 {[%emt 0:03:15]} 17. Bb5 {[%emt 0:00:32]} Kf8 {[%emt 0:17:07]} 18. Nxe7 {[%emt 0:04:17]} Kxe7 {[%emt 0:00:17]} 19. Rhe1+ {[%emt 0:00:16]} Kf6 {[%emt 1:01:27]} 20. Rd6+ {[%emt 0:00:07]} Kf5 {[%emt 0:00:00]} 21. Bxc6 {[%emt 0:15:10]} bxc6 {[%emt 0:00:00]} 22. Rxc6 {[%emt 0:00:41]} Rb5 {[%emt 0:01:30]} 23. Re7 {[%emt 0:14:15]} Rf8 {[%emt 0:00:00]} 24. Rcc7 {[%emt 0:07:25]} Kg6 {[%emt 0:01:00]} 25. Re4 {[%emt 0:04:08]} Rh5 {[%emt 0:00:00]} 26. h4 {[%emt 0:18:02]} Rf5 {[%emt 0:00:00]} 27. Rc3 {[%emt 0:05:14]} Rd8 {[%emt 0:00:00]} 28. Kc2 {[%emt 0:00:54]} Rfd5 {[%emt 0:00:00]} 29. Rc6+ {[%emt 0:04:07]} f6 {[%emt 0:00:00]} 30. Rxb6 {[%emt 0:01:31]} Rd2+ {[%emt 0:00:00]} 31. Kc3 {[%emt 0:00:12]} R8d3+ {[%emt 0:00:00]} 32. Kc4 {[%emt 0:00:23]} Rxf3 {[%emt 0:00:00]} 33. Rb7 {[%emt 0:00:58]} Rfxf2 {[%emt 0:01:46]} 34. Rg4+ {[%emt 0:00:26]} Kf5 {[%emt 0:00:22]} 35. Rgxg7 {[%emt 0:00:06]} Rxb2 {[%emt 0:00:26]} 36. Rxb2 {[%emt 0:00:30]} Rxb2 {[%emt 0:00:09]} 37. Rxh7 {[%emt 0:00:01]} Ke4 {[%emt 0:02:08]} 38. Re7+ {[%emt 0:00:39]} Kf4 {[%emt 0:00:16]} 39. Re1 {[%emt 0:01:17]} f5 {[%emt 0:00:53]} 40. Rh1 {[%emt 0:02:22]} Kg3 {[%emt 0:01:21]} 41. h5 {[%emt 0:00:05]} Rb7 {[%emt 0:00:30]} 42. h6 {[%emt 0:00:30]} Rh7 {[%emt 0:01:09]} 43. Kd4 {[%emt 0:01:33]} f4 {[%emt 0:00:00]} 44. Rg1+ Kf2 {[%emt 0:01:00]} 45. Rg6 {[%emt 0:02:06]} f3 {[%emt 0:00:00]} 46. Ra6 {[%emt 0:00:35]} Kg2 {[%emt 0:00:03]} 47. Ke3 {[%emt 0:01:09]} Re7+ {[%emt 0:01:27]} 48. Kf4 {[%emt 0:00:09]} f2 {[%emt 0:00:00]} 49. Ra2 {[%emt 0:00:30]} Kg1 {[%emt 0:00:06]} 50. Rxf2 {[%emt 0:00:30]} Kxf2 {[%emt 0:00:30]} 51. Kg5 {[%emt 0:00:30]} Kg3 {[%emt 0:00:30]} 52. Kg6 {[%emt 0:00:30]} Re6+ {[%emt 0:00:30]} 53. Kg7 {[%emt 0:00:30]} Rxh6 {[%emt 0:00:30]} 1/2-1/2